bitfinex-derivatives/quotes_ETHF0:USTF0_20250416
["timestamp","ask_amount","ask_price","bid_price","bid_amount"]
[1744782233548,7.07602,1574.4,1574.3,14.28459247]
[1744782233748,5.8056,1574.4,1574.3,14.28459247]
[1744782233946,7.07602,1574.4,1574.3,14.28459247]
[1744782234853,7.07602,1574.4,1574.3,13.01409247]
[1744782235043,18.01202,1574.4,1574.3,0.00955688]
[1744782235243,1.27066,1574.1,1574.0,3.2078]
[1744782235652,1.27066,1574.1,1574.0,57.01233559]
[1744782236349,7.04966,1574.1,1574.0,57.01233559]
[1744782236555,1.27074,1574.0,1573.9,0.00955688]
[1744782236850,1.27091,1573.8,1573.7,8.43917827]
[1744782237053,1.27091,1573.8,1573.7,21.44371386]
[1744782237859,12.33601,1573.8,1573.7,8.43917827]
[1744782238861,17.22141,1573.8,1573.7,8.43917827]
[1744782239060,1.27099,1573.7,1573.6,0.00955688]
[1744782239359,13.09249,1573.7,1573.6,13.01409247]
[1744782248864,13.09249,1573.7,1573.6,14.28516247]
[1744782249358,13.09249,1573.7,1573.6,20.12666247]
[1744782249764,0.00955688,1573.8,1573.7,1.27099]
[1744782249967,1.28046688,1573.8,1573.7,22.05383559]
[1744782250164,1.28046688,1573.8,1573.7,16.21233559]
[1744782250364,1.28046688,1573.8,1573.7,57.01233559]
[1744782250568,0.00955688,1573.8,1573.7,58.28332559]
[1744782250762,7.05066688,1573.8,1573.7,64.12482559]
[1744782252252,7.05066688,1573.8,1573.7,53.80453559]
[1744782252452,1.27099,1573.7,1573.6,0.00955688]
[1744782252663,1.27099,1573.7,1573.6,13.01409247]
[1744782252664,12.23359,1573.7,1573.6,13.01409247]
[1744782255665,17.23359,1573.7,1573.6,0.00955688]
[1744782255869,1.27123,1573.4,1573.3,3.2078]
[1744782256068,1.27123,1573.4,1573.3,16.21233559]
[1744782256270,12.13443,1573.4,1573.3,16.21233559]
[1744782256568,10.8632,1573.4,1573.3,17.48364559]
[1744782256770,5.786,1573.4,1573.3,17.48364559]
[1744782257257,7.05723,1573.4,1573.3,17.48364559]
[1744782257461,7.05723,1573.4,1573.3,16.21233559]
[1744782258065,5.786,1573.4,1573.3,17.48364559]
[1744782258266,7.05723,1573.4,1573.3,16.21233559]
[1744782259069,7.05723,1573.4,1573.3,17.48364559]
[1744782259262,5.786,1573.4,1573.3,17.48364559]
[1744782259468,7.05723,1573.4,1573.3,23.20674559]
[1744782259665,5.786,1573.4,1573.3,23.20674559]
[1744782259857,11.1013,1573.6,1573.3,21.93543559]
[1744782260062,1.27117,1573.5,1573.4,19.99880559]
[1744782260269,7.29527,1573.5,1573.4,19.99880559]
[1744782260770,1.27111,1573.6,1573.5,1.27111]
[1744782260970,1.27111,1573.6,1573.5,23.20654559]
[1744782261171,6.0241,1573.6,1573.5,23.20654559]
[1744782261374,7.29517,1573.6,1573.5,23.20654559]
[1744782261564,6.0241,1573.6,1573.5,23.20654559]
[1744782261760,4.48832688,1573.8,1573.7,1.27099]
[1744782261968,1.27099,1573.7,1573.6,19.94177559]
[1744782262263,1.27099,1573.7,1573.6,18.67073559]
[1744782262464,1.27099,1573.7,1573.6,19.94180559]
[1744782262465,7.35449,1573.7,1573.6,19.94180559]
[1744782264570,6.0835,1573.7,1573.6,19.94180559]
[1744782264971,7.35449,1573.7,1573.6,19.94180559]
[1744782265876,1.28053688,1573.8,1573.7,1.27099]
[1744782266063,1.28053688,1573.8,1573.7,19.86272559]
[1744782266270,0.00955688,1573.8,1573.7,28.07052559]
[1744782266469,0.00955688,1573.8,1573.7,23.07052559]
[1744782267375,1.28046688,1573.8,1573.7,17.48332559]
[1744782269271,1.28046688,1573.8,1573.7,16.21233559]
[1744782269477,1.28046688,1573.8,1573.7,17.48332559]
[1744782269678,1.28046688,1573.8,1573.7,13.00453559]
[1744782269879,1.27115,1573.5,1573.4,1.27117]
[1744782270077,1.27114,1573.6,1573.5,14.27563559]
[1744782270375,1.27114,1573.6,1573.5,4.4789]
[1744782270577,6.81274,1573.6,1573.5,17.48343559]
[1744782270775,11.72124,1573.6,1573.5,17.48343559]
[1744782272382,11.72124,1573.6,1573.5,16.21233559]
[1744782273780,11.72124,1573.6,1573.3,3.2078]
[1744782273781,14.89907,1573.6,1573.3,3.2078]
[1744782274081,1.27123,1573.4,1573.3,16.21233559]
[1744782274275,1.27123,1573.4,1573.3,3.2078]
[1744782274578,1.27123,1573.4,1573.3,17.48364559]
[1744782274771,6.1364,1573.5,1573.3,17.48364559]
[1744782274772,7.40759,1573.5,1573.4,1.27123]
[1744782274972,6.1364,1573.5,1573.4,13.00453559]
[1744782275172,7.40755,1573.5,1573.4,13.00453559]
[1744782275478,7.40755,1573.5,1573.4,14.27576559]
[1744782276077,7.40755,1573.5,1573.4,13.00453559]
[1744782278679,1.27123,1573.4,1573.3,3.2078]
[1744782278975,12.25483,1573.4,1573.3,3.2078]
[1744782279173,12.25483,1573.4,1573.3,16.21233559]
[1744782283379,5.936,1573.7,1573.3,16.21233559]
[1744782283587,1.27119,1573.5,1573.4,14.27572559]
[1744782283878,6.0137,1573.6,1573.5,1.27115]
[1744782284086,6.0137,1573.6,1573.5,17.48348559]
[1744782284380,6.0137,1573.6,1573.5,23.46718559]
[1744782284580,12.26483,1573.7,1573.6,1.27107]
[1744782284779,18.27853,1573.7,1573.6,20.25930559]
[1744782285175,18.27853,1573.7,1573.6,14.27560559]
[1744782285380,18.27853,1573.7,1573.6,13.00453559]
[1744782290682,18.27853,1573.7,1573.3,4.4791]
[1744782290683,1.27123,1573.4,1573.3,4.4791]
[1744782290877,1.27123,1573.4,1573.3,3.2078]
[1744782291076,1.27123,1573.4,1573.3,16.21233559]
[1744782291486,1.27123,1573.4,1573.3,17.48364559]
[1744782291983,7.12832,1573.5,1573.4,1.27123]
[1744782292185,1.27123,1573.4,1573.3,4.47904]
[1744782292491,7.15423,1573.4,1573.3,4.47904]
[1744782292692,7.15423,1573.4,1573.3,17.48357559]
[1744782294583,1.27119,1573.5,1573.4,1.27123]
[1744782294783,1.27119,1573.5,1573.4,19.80916559]
[1744782295490,1.27119,1573.5,1573.4,13.00453559]
[1744782296085,6.85829,1573.5,1573.4,13.00453559]
[1744782300090,1.27123,1573.4,1573.3,3.2078]
[1744782300293,1.27131,1573.3,1573.2,0.00955688]
[1744782300491,11.06681,1573.3,1573.2,0.00955688]
[1744782300796,21.86381,1573.3,1573.2,0.00955688]
[1744782300996,1.27147,1573.1,1573.0,8.43917827]
[1744782301295,4.47927,1573.1,1573.0,8.43917827]
[1744782301491,1.27147,1573.1,1573.0,8.43917827]
[1744782301691,1.27147,1573.1,1573.0,21.44371386]
[1744782301890,6.95956,1573.2,1573.0,33.66379386]
[1744782302092,1.27129,1573.4,1573.1,22.16093559]
[1744782302399,10.883,1573.5,1573.4,1.27123]
[1744782302601,5.6881,1573.5,1573.4,1.27123]
[1744782302801,5.6881,1573.5,1573.4,20.22436559]
[1744782303001,6.95925,1573.5,1573.4,20.22436559]
[1744782305005,1.27111,1573.6,1573.5,1.27115]
[1744782305200,1.27111,1573.6,1573.5,20.00288559]
[1744782305706,7.22501,1573.6,1573.5,21.93953559]
[1744782306001,7.22501,1573.6,1573.5,18.73173559]
[1744782306201,7.22501,1573.6,1573.5,13.00453559]
[1744782308616,1.27123,1573.4,1573.3,3.2078]
[1744782308817,1.27123,1573.4,1573.3,4.47911]
[1744782309116,1.27123,1573.4,1573.3,17.48364559]
[1744782309412,5.6529,1573.4,1573.3,58.28364559]
[1744782309616,1.27115,1573.5,1573.4,1.27115]
[1744782309819,1.27115,1573.5,1573.4,19.92418559]
[1744782310314,1.27115,1573.5,1573.4,14.27568559]
[1744782310708,1.27115,1573.5,1573.4,20.18818559]
[1744782311317,1.27115,1573.5,1573.4,18.91703559]
[1744782311918,1.27115,1573.5,1573.4,20.18826559]
[1744782312421,1.27115,1573.5,1573.4,13.00453559]
[1744782313420,1.27123,1573.4,1573.3,3.2078]
[1744782313719,1.27139,1573.2,1573.1,3.2078]
[1744782313919,1.27139,1573.2,1573.1,16.21233559]
[1744782315116,1.27139,1573.2,1573.1,23.59007559]
[1744782316119,1.27139,1573.2,1573.1,23.59010559]
[1744782316307,1.27139,1573.2,1573.1,22.31863559]
[1744782317721,1.27139,1573.2,1573.1,23.59010559]
[1744782318223,1.27139,1573.2,1573.1,22.31863559]
[1744782319123,1.27139,1573.2,1573.1,23.59010559]
[1744782319520,1.27139,1573.2,1573.1,22.31863559]
[1744782319822,1.27139,1573.2,1573.1,23.59010559]
[1744782320023,1.27139,1573.2,1573.1,16.21233559]
[1744782320623,1.27139,1573.2,1573.1,17.48380559]
[1744782320822,1.27139,1573.2,1573.1,16.21233559]
[1744782321324,1.27139,1573.2,1573.1,17.48380559]
[1744782321819,1.27139,1573.2,1573.1,16.21233559]
[1744782322721,1.27139,1573.2,1573.1,17.48380559]
[1744782324926,1.27139,1573.2,1573.1,22.44860559]
[1744782325328,5.7707,1573.3,1573.2,1.27139]
[1744782325623,7.04201,1573.3,1573.2,19.12003559]
[1744782325826,7.04201,1573.3,1573.2,20.39142559]
[1744782327927,6.34297,1573.4,1573.3,1.27131]
[1744782328127,12.14187,1573.4,1573.3,20.39134559]
[1744782328327,5.7989,1573.4,1573.3,20.39134559]
[1744782328528,1.27122,1573.5,1573.4,1.27123]
[1744782328824,5.5865,1573.5,1573.4,20.13656559]
[1744782329031,6.85765,1573.5,1573.4,20.13656559]
[1744782329221,6.85765,1573.5,1573.4,13.00453559]
[1744782329417,6.85765,1573.5,1573.4,53.80453559]
[1744782331321,6.85765,1573.5,1573.4,55.07576559]
[1744782331521,6.85765,1573.5,1573.4,53.80453559]
[1744782335431,6.85765,1573.5,1573.4,55.07576559]
[1744782336427,6.85765,1573.5,1573.4,53.80453559]
[1744782336634,6.85765,1573.5,1573.4,55.07576559]
[1744782339534,6.85765,1573.5,1573.4,53.80453559]
[1744782343135,1.27139,1573.2,1573.1,58.28380559]
[1744782343634,1.27139,1573.2,1573.1,63.82670559]
[1744782343836,6.83268,1573.3,1573.2,1.27139]
[1744782344034,6.83268,1573.3,1573.2,14.27592559]
[1744782344631,5.5613,1573.3,1573.2,14.27592559]
[1744782344844,1.27117,1573.5,1573.4,1.27119]
[1744782345039,6.80997,1573.5,1573.4,1.27119]
[1744782345339,6.80997,1573.5,1573.4,13.00453559]
[1744782345838,5.5388,1573.5,1573.4,14.27576559]
[1744782346032,12.32133,1573.7,1573.6,1.27107]
[1744782346033,7.20699,1573.7,1573.6,1.27107]
[1744782346236,1.28050688,1573.8,1573.7,1.27099]
[1744782346440,0.00955688,1573.8,1573.7,20.36762559]
[1744782346643,1.27072,1574.1,1574.0,1.27072]
[1744782346832,7.21892,1574.1,1574.0,4.47852]
[1744782347034,9.9104,1574.3,1574.1,1.27059]
[1744782347340,5.0037,1574.3,1574.2,4.47838]
[1744782347542,10.9519,1574.3,1574.2,17.48291559]
[1744782347742,10.9519,1574.3,1574.2,64.31101559]
[1744782347938,5.9482,1574.3,1574.2,64.31101559]
[1744782348136,0.00955688,1574.4,1574.3,1.2705]
[1744782348338,0.00955688,1574.4,1574.3,20.30313559]
[1744782348846,1.27997688,1574.4,1574.3,20.30313559]
[1744782349139,0.00955688,1574.4,1574.3,20.30313559]
[1744782351141,1.27016,1574.8,1574.7,1.27018]
[1744782351343,5.8205,1574.8,1574.7,1.27018]
[1744782351541,5.8205,1574.8,1574.7,14.27471559]
[1744782352145,5.8205,1574.8,1574.7,20.05471559]
[1744782352338,7.0906,1574.8,1574.7,20.05471559]
[1744782352538,7.0906,1574.8,1574.7,13.00453559]
[1744782353839,5.8205,1574.8,1574.7,14.27471559]
[1744782354147,7.0906,1574.8,1574.7,13.00453559]
[1744782354343,0.00952623,1574.9,1574.8,1.2701]
[1744782354545,0.00952623,1574.9,1574.8,17.48243559]
[1744782355045,6.12682623,1574.9,1574.8,17.48243559]
[1744782356138,0.00952623,1574.9,1574.8,17.48243559]
[1744782356335,0.00952623,1574.9,1574.8,23.15283559]
[1744782356538,7.2057,1575.3,1575.2,1.26978]
[1744782356834,6.8619,1575.3,1575.2,1.26978]
[1744782357144,6.8619,1575.3,1575.2,14.27431559]
[1744782357544,6.8619,1575.3,1575.2,13.00453559]
[1744782357941,1.26978,1575.2,1575.1,0.00952623]
[1744782358141,6.86198,1575.2,1575.1,13.01406182]
[1744782358637,6.86198,1575.2,1575.1,53.81406182]
[1744782358845,21.00578,1575.2,1575.1,0.00952623]
[1744782359046,5.936,1575.2,1575.1,16.22186182]
[1744782359443,1.26978,1575.2,1575.1,58.29172182]
[1744782359744,0.00952623,1575.4,1575.3,1.2697]
[1744782359945,5.936,1575.6,1575.5,1.26953]
[1744782360146,5.936,1575.6,1575.4,14.27411559]
[1744782360147,1.26953,1575.5,1575.4,14.27411559]
[1744782360448,5.675,1575.6,1575.4,14.27411559]
[1744782360647,10.675,1575.6,1575.3,3.2078]
[1744782360849,10.675,1575.6,1575.1,44.01732623]
[1744782360850,1.26978,1575.2,1575.1,44.01732623]
[1744782361049,1.26978,1575.2,1575.1,53.81406182]
[1744782361453,1.26976,1575.3,1575.1,53.81406182]
[1744782361646,5.675,1575.2,1575.1,42.07938623]
[1744782362153,5.675,1575.2,1575.1,55.08392182]
[1744782362349,6.94478,1575.2,1575.1,53.81406182]
[1744782362545,6.94478,1575.2,1575.1,0.00952623]
[1744782362851,3.17465,1575.1,1574.7,1.27016]
[1744782363155,3.17465,1575.1,1574.8,13.00453559]
[1744782363156,1.27009,1574.9,1574.8,13.00453559]
[1744782363339,1.27015,1574.8,1574.7,13.00453559]
[1744782363946,1.27018,1574.7,1574.6,0.00952623]
[1744782364150,7.20838,1574.7,1574.6,13.01406182]
[1744782364544,12.26318,1574.7,1574.6,13.01406182]
[1744782365651,12.26318,1574.7,1574.6,16.22186182]
[1744782365953,12.26318,1574.7,1574.6,0.00952623]
[1744782366453,23.19918,1574.7,1574.6,0.00952623]
[1744782366845,1.27061,1574.2,1574.1,3.2078]
[1744782367250,1.27061,1574.2,1574.1,16.21233559]
[1744782367450,11.03047,1574.3,1574.1,16.21233559]
[1744782367651,11.03047,1574.3,1574.1,17.48295559]
[1744782367856,11.03047,1574.3,1574.2,13.00453559]
[1744782368460,11.0304,1574.3,1574.2,14.27511559]
[1744782368643,9.7599,1574.3,1574.2,14.27511559]
[1744782369152,11.0304,1574.3,1574.2,14.27511559]
[1744782369343,9.7599,1574.3,1574.2,14.27511559]
[1744782369744,11.0304,1574.3,1574.2,14.27511559]
[1744782369948,9.7599,1574.3,1574.2,14.27511559]
[1744782370154,11.0304,1574.3,1574.2,14.27511559]
[1744782370355,9.7599,1574.3,1574.2,14.27511559]
[1744782370557,11.0304,1574.3,1574.2,14.27511559]
[1744782370757,17.1658,1574.3,1574.2,14.27511559]
[1744782372056,17.1658,1574.3,1574.2,13.00453559]
[1744782372261,17.1658,1574.3,1574.2,14.27511559]
[1744782372561,17.1658,1574.3,1574.2,13.00453559]
[1744782374851,17.1658,1574.3,1574.1,3.2078]
[1744782374852,1.27058,1574.2,1574.1,3.2078]
[1744782375053,7.16788,1574.2,1574.1,3.2078]
[1744782375352,7.16793,1574.2,1574.0,0.00952623]
[1744782375547,1.27063,1574.2,1574.1,14.27519559]
[1744782375749,9.7599,1574.3,1574.2,1.27058]
[1744782375949,11.0304,1574.3,1574.2,14.27511559]
[1744782376360,11.0304,1574.3,1574.2,13.00453559]
[1744782376964,6.0505,1574.3,1574.2,14.27511559]
[1744782377262,4.78,1574.3,1574.2,14.27511559]
[1744782377457,1.27039,1574.5,1574.2,13.00453559]
[1744782377764,6.53289,1574.5,1574.4,1.27042]
[1744782378264,4.8072,1574.6,1574.5,1.27034]
[1744782378460,4.8072,1574.6,1574.5,14.27487559]
[1744782378762,1.27028,1574.6,1574.5,14.27487559]
[1744782379063,1.27026,1574.6,1574.5,55.07480559]
[1744782379364,5.2625,1574.7,1574.6,1.27026]
[1744782379558,5.2625,1574.7,1574.6,17.48259559]
[1744782380161,5.2625,1574.7,1574.6,23.07829559]
[1744782380664,0.00952623,1574.8,1574.7,1.27018]
[1744782380865,1.27962623,1574.8,1574.7,19.87041559]
[1744782381164,1.27962623,1574.8,1574.7,18.60023559]
[1744782381465,1.27962623,1574.8,1574.7,13.00453559]
[1744782382654,1.27962623,1574.8,1574.3,5.5957]
[1744782382655,1.2706,1574.2,1574.0,0.00952623]
[1744782382858,3.17568,1574.6,1574.2,1.27051]
[1744782383058,4.8734,1574.5,1574.3,4.4783]
[1744782383357,1.27042,1574.4,1574.3,4.4783]
[1744782383762,1.27042,1574.4,1574.3,58.28283559]
[1744782384064,1.27042,1574.4,1574.3,57.01233559]
[1744782384666,6.40012,1574.4,1574.3,57.01233559]
[1744782389867,1.27042,1574.4,1574.3,58.28278559]
[1744782390661,1.27042,1574.4,1574.3,57.01233559]
[1744782392172,1.27042,1574.4,1574.3,16.21233559]
[1744782392466,4.47822,1574.4,1574.3,13.00453559]
[1744782392667,1.27066,1574.1,1574.0,3.21732623]
[1744782392867,1.27066,1574.1,1574.0,0.00952623]
[1744782393067,1.27066,1574.1,1574.0,13.01406182]
[1744782393771,9.46336,1574.1,1574.0,13.01406182]
[1744782393977,17.19156,1574.1,1574.0,0.00952623]
[1744782394169,17.19156,1574.1,1573.7,40.8]
[1744782394170,3.17717,1573.9,1573.5,11.64697827]
[1744782394470,1.27099,1573.7,1573.6,13.00453559]
[1744782394771,1.27099,1573.7,1573.6,53.80453559]
[1744782395276,5.6321,1573.7,1573.6,55.07560559]
[1744782395473,5.6321,1573.7,1573.6,61.11980559]
[1744782397066,1.28043623,1573.8,1573.6,64.84873559]
[1744782397274,7.29873623,1573.8,1573.7,23.52752559]
[1744782398477,7.29873623,1573.8,1573.7,22.25653559]
[1744782399179,7.29873623,1573.8,1573.7,13.00453559]
[1744782400078,7.29873623,1573.8,1573.7,17.48332559]
[1744782400689,7.29873623,1573.8,1573.7,16.21233559]
[1744782401175,7.29873623,1573.8,1573.7,17.48332559]
[1744782401378,7.29873623,1573.8,1573.7,16.21233559]
[1744782401579,7.29873623,1573.8,1573.7,17.48332559]
[1744782402085,6.02782623,1573.8,1573.7,17.48332559]
[1744782402286,6.02782623,1573.8,1573.7,23.49452559]
[1744782402789,0.00952623,1573.8,1573.7,23.49452559]
[1744782403187,0.00952623,1573.8,1573.7,64.29452559]
[1744782403587,1.28043623,1573.8,1573.7,64.29452559]
[1744782403790,5.81342623,1573.8,1573.7,64.29452559]
[1744782404589,0.00952623,1573.8,1573.7,64.29452559]
[1744782406192,1.28043623,1573.8,1573.7,64.29452559]
[1744782406487,5.76752623,1573.8,1573.7,64.29452559]
[1744782406691,7.03843623,1573.8,1573.7,64.29452559]
[1744782407786,7.03843623,1573.8,1573.7,58.28332559]
[1744782407980,5.76752623,1573.8,1573.7,58.28332559]
[1744782408181,0.00952623,1573.8,1573.7,58.28332559]
[1744782408380,0.00952623,1573.8,1573.7,74.70462559]
[1744782408585,6.43246,1574.3,1574.2,1.27058]
[1744782408985,6.43246,1574.3,1574.2,13.00453559]
[1744782409193,12.07956,1574.3,1574.2,13.00453559]
[1744782409388,12.07956,1574.3,1574.2,14.27511559]
[1744782409890,5.01582623,1574.4,1574.3,1.2705]
[1744782410085,10.66292623,1574.4,1574.3,17.48283559]
[1744782410387,11.93334623,1574.4,1574.3,17.48283559]
[1744782410593,10.66292623,1574.4,1574.3,17.48283559]
[1744782411490,11.93334623,1574.4,1574.3,17.48283559]
[1744782412394,0.00952623,1574.4,1574.3,17.48283559]
[1744782412593,0.00952623,1574.4,1574.3,28.30903559]
[1744782414184,1.27994623,1574.4,1574.3,28.30903559]
[1744782414494,7.18214623,1574.4,1574.3,17.48283559]
[1744782415197,5.91172623,1574.4,1574.3,23.51693559]
[1744782415396,7.18214623,1574.4,1574.3,23.51693559]
[1744782415989,7.18214623,1574.4,1574.3,16.21233559]
[1744782416196,1.27058,1574.2,1574.1,9.5388]
[1744782416597,1.27058,1574.2,1574.1,13.00453559]
[1744782416898,6.87908,1574.2,1574.1,13.00453559]
[1744782424006,6.87908,1574.2,1574.1,14.27519559]
[1744782426103,6.87908,1574.2,1574.1,13.00453559]
[1744782428808,1.27074,1574.0,1573.9,4.47859]
[1744782429201,1.27074,1574.0,1573.9,16.21233559]
[1744782429507,1.27074,1574.0,1573.9,17.48316559]
[1744782429706,6.40264,1574.0,1573.9,17.48316559]
[1744782431510,6.40264,1574.0,1573.9,16.21233559]
[1744782432315,6.40264,1574.0,1573.9,13.00453559]
[1744782432606,12.36004,1574.0,1573.9,13.00453559]
[1744782434313,5.9574,1574.0,1573.9,14.27536559]
[1744782435012,5.9574,1574.0,1573.9,20.21476559]
[1744782435215,5.9574,1574.0,1573.9,23.42256559]
[1744782436610,5.0881,1574.3,1574.2,1.27058]
[1744782436801,11.60112623,1574.4,1574.1,3.2078]
[1744782437006,5.94552623,1574.4,1574.3,1.2705]
[1744782437410,5.94552623,1574.4,1574.3,14.27503559]
[1744782437610,11.60112623,1574.4,1574.3,20.21443559]
[1744782439121,12.87154623,1574.4,1574.3,20.21443559]
[1744782440017,12.87154623,1574.4,1574.3,23.42223559]
[1744782441219,12.87154623,1574.4,1574.3,16.21233559]
[1744782441420,6.93554623,1574.4,1574.3,13.00453559]
[1744782445610,1.27058,1574.2,1574.1,3.2078]
[1744782446013,1.27058,1574.2,1574.1,16.21233559]
[1744782446216,12.05658,1574.2,1574.1,16.21233559]
[1744782446416,12.05658,1574.2,1574.1,13.00453559]
[1744782447224,17.99258,1574.2,1574.1,13.00453559]
[1744782447725,24.9298,1574.2,1573.7,57.62157827]
[1744782447920,1.27083,1573.9,1573.8,13.00453559]
[1744782448125,1.27091,1573.8,1573.7,21.44371386]
[1744782448325,16.80241,1573.8,1573.7,8.43917827]
[1744782448523,1.27107,1573.6,1573.5,65.09297028]
[1744782448816,1.27107,1573.6,1573.5,78.09750587]
[1744782449433,6.85355,1573.7,1573.5,79.36865587]
[1744782449626,6.85355,1573.7,1573.6,13.00453559]
[1744782457335,1.27139,1573.2,1573.1,9.28724]
[1744782457630,6.38573,1573.5,1573.2,13.00453559]
[1744782457829,6.90371,1573.4,1573.3,13.00453559]
[1744782458530,11.85591,1573.4,1573.3,13.00453559]
[1744782458724,1.27131,1573.3,1573.2,6.88551623]
[1744782458924,6.90371,1573.3,1573.2,6.88551623]
[1744782459120,6.90371,1573.3,1573.2,19.89005182]
[1744782460236,1.27126,1573.4,1573.3,1.27123]
[1744782460431,7.33432623,1573.5,1573.4,1.27123]
[1744782460632,0.00952623,1573.5,1573.4,19.49446559]
[1744782460833,0.00952623,1573.5,1573.4,66.03576559]
[1744782461133,0.00952623,1573.5,1573.4,71.03576559]
[1744782462539,1.28067623,1573.5,1573.4,66.03576559]
[1744782463032,1.28067623,1573.5,1573.4,55.07576559]
[1744782463338,1.28067623,1573.5,1573.4,60.85846559]
[1744782463534,7.08727623,1573.5,1573.4,60.85846559]
[1744782464230,0.00952623,1573.5,1573.4,60.85846559]
[1744782464732,0.00952623,1573.5,1573.4,65.85846559]
[1744782464933,0.00952623,1573.5,1573.4,60.85846559]
[1744782466339,6.54437,1573.8,1573.5,3.17781]
[1744782466528,1.27091,1573.8,1573.7,4.47872]
[1744782466732,6.91938,1573.9,1573.8,1.27091]
[1744782466935,5.0532,1574.0,1573.9,1.27083]
[1744782467240,6.91916,1574.1,1574.0,1.27074]
[1744782467443,6.91916,1574.1,1574.0,20.03217559]
[1744782469538,6.91916,1574.1,1574.0,14.27527559]
[1744782474643,6.91916,1574.1,1574.0,20.10357559]
[1744782475947,0.00952623,1574.2,1574.1,1.27066]
[1744782476141,5.55992623,1574.2,1574.1,23.31129559]
[1744782476339,0.00952623,1574.2,1574.1,28.31129559]
[1744782477144,5.936,1574.7,1574.6,1.27026]
[1744782477346,5.5519,1574.7,1574.6,4.47806]
[1744782477644,5.5519,1574.7,1574.6,58.28259559]
[1744782478243,5.5519,1574.7,1574.6,64.26399559]
[1744782479644,5.5519,1574.7,1574.6,58.28259559]
[1744782480441,6.82208,1574.7,1574.6,58.28259559]
[1744782480844,5.5519,1574.7,1574.6,58.28259559]
[1744782481637,5.5519,1574.7,1574.6,63.88259559]
[1744782481947,6.82208,1574.7,1574.6,57.01233559]
[1744782482143,11.88798,1574.7,1574.6,57.01233559]
[1744782482744,15.6178,1574.7,1574.3,7.53343]
[1744782483046,1.2705,1574.3,1574.2,4.47834]
[1744782483238,1.27058,1574.2,1574.1,9.70977827]
[1744782483440,1.27056,1574.3,1574.2,14.27508559]
[1744782483842,6.95916,1574.3,1574.2,55.07508559]
[1744782484349,6.95916,1574.3,1574.2,53.80453559]
[1744782484744,6.95916,1574.3,1574.2,55.07511559]
[1744782485448,6.95916,1574.3,1574.2,58.28291559]
[1744782486651,6.95916,1574.3,1574.2,57.01233559]
[1744782486972,1.27074,1574.0,1573.9,0.00952623]
[1744782487345,6.27074,1574.0,1573.9,0.00952623]
[1744782487545,17.59344,1574.0,1573.9,0.00952623]
[1744782488043,1.27097,1573.8,1573.6,3.2078]
[1744782488246,16.3227,1574.0,1573.7,53.80453559]
[1744782488247,1.27087,1573.9,1573.7,53.80453559]
[1744782488448,5.2745,1574.0,1573.8,1.27088]
[1744782488653,5.2745,1574.0,1573.9,1.27083]
[1744782488859,6.54527,1574.0,1573.9,13.00453559]
[1744782491257,6.54527,1574.0,1573.9,14.27536559]
[1744782491557,5.6177,1574.0,1573.9,14.27536559]
[1744782491945,0.00952623,1574.1,1574.0,1.27074]
[1744782492151,5.62722623,1574.1,1574.0,23.10897559]
[1744782493158,0.00952623,1574.1,1574.0,23.10897559]
[1744782493354,0.00952623,1574.1,1574.0,28.10897559]
[1744782494159,1.28018623,1574.1,1574.0,16.21233559]
[1744782494350,11.24828623,1574.1,1574.0,16.21233559]
[1744782494656,11.24828623,1574.1,1574.0,13.00453559]
[1744782496361,11.24828623,1574.1,1574.0,14.27527559]
[1744782496858,9.97762623,1574.1,1574.0,14.27527559]
[1744782497060,0.00952623,1574.1,1574.0,17.48307559]
[1744782497248,0.00952623,1574.1,1574.0,22.48307559]
[1744782499762,0.00952623,1574.1,1574.0,27.55437559]
[1744782500955,0.00952623,1574.1,1574.0,22.55437559]
[1744782502664,5.9646,1574.2,1574.0,22.55437559]
[1744782502665,4.8725,1574.5,1574.4,1.27042]
[1744782502869,10.5675,1574.5,1574.4,1.27042]
[1744782503055,10.5675,1574.5,1574.4,14.27495559]
[1744782504851,0.00952623,1574.6,1574.5,1.27034]
[1744782505058,0.00952623,1574.6,1574.5,23.43017559]
[1744782505259,0.00952623,1574.6,1574.5,34.64737559]
[1744782505764,6.30306,1575.0,1574.9,1.27002]
[1744782505957,1.27002,1574.9,1574.8,3.2078]
[1744782506157,1.2701,1574.8,1574.7,13.00453559]
[1744782506364,1.2701,1574.8,1574.7,53.80453559]
[1744782506560,6.2701,1574.8,1574.7,53.80453559]
[1744782507167,7.0739,1574.8,1574.7,53.80453559]
[1744782507365,7.0739,1574.8,1574.7,14.27471559]
[1744782507568,5.8038,1574.8,1574.7,14.27471559]
[1744782507761,5.8038,1574.8,1574.7,20.22221559]
[1744782507960,5.8038,1574.8,1574.7,61.02221559]
[1744782508564,5.8038,1574.8,1574.7,64.23001559]
[1744782508966,7.0739,1574.8,1574.7,64.23001559]
[1744782509969,5.8038,1574.8,1574.7,64.23001559]
[1744782511169,7.0739,1574.8,1574.7,64.23001559]
[1744782511370,7.0739,1574.8,1574.7,55.07471559]
[1744782511663,7.0739,1574.8,1574.7,57.01233559]
[1744782511868,7.0739,1574.8,1574.7,13.00453559]
[1744782513466,1.27018,1574.7,1574.6,40.80952623]
[1744782513665,12.12498,1574.7,1574.6,53.81406182]
[1744782513866,22.09128,1574.7,1574.6,0.00952623]
[1744782514473,17.09128,1574.7,1574.6,14.28432182]
[1744782514965,15.8211,1574.7,1574.6,14.28432182]
[1744782515166,17.09128,1574.7,1574.6,14.28432182]
[1744782516374,15.8211,1574.7,1574.6,14.28432182]
[1744782517685,17.09128,1574.7,1574.6,14.28432182]
[1744782517986,15.8211,1574.7,1574.6,14.28432182]
[1744782518488,17.09128,1574.7,1574.6,14.28432182]
[1744782518785,17.09128,1574.7,1574.6,0.00952623]
[1744782519677,17.09128,1574.7,1574.6,13.01406182]
[1744782519882,6.016,1574.7,1574.6,13.01406182]
[1744782520079,6.016,1574.7,1574.6,14.28432182]
[1744782520786,6.016,1574.7,1574.6,25.22362182]
[1744782521082,5.12572623,1574.9,1574.8,1.2701]
[1744782521288,6.39574623,1574.9,1574.8,1.2701]
[1744782521583,5.12572623,1574.9,1574.8,14.27463559]
[1744782521785,0.00952623,1574.9,1574.8,14.27463559]
[1744782522489,0.00952623,1574.9,1574.8,20.13223559]
[1744782523587,0.00952623,1574.9,1574.8,25.13223559]